fUSD/lending_fUSD_20260626
["ID","MTS","AMOUNT","RATE_DAILY","PERIOD"]
[426473537,1782431439000,-281.77319715,0.00018442,2]
[426473535,1782431439000,-165.34,0.00018425,2]
[426473539,1782431439000,-233.5,0.000185,2]
[426473541,1782431439000,-332.63176128,0.00018535,2]
[426473547,1782431439000,-227.8710112,0.00018899,2]
[426473543,1782431439000,-168.234652,0.00018795,2]
[426473545,1782431439000,-3958.96287272,0.00018864,2]
[426473551,1782431439000,-151.0,0.00019178,2]
[426473519,1782431439000,-3045.74,0.00017728,2]
[426473553,1782431439000,-20518.94,0.00019178,2]
[426473554,1782431439000,-151.0,0.00019178,2]
[426473556,1782431439000,-346.69135438,0.00019295,2]
[426473558,1782431439000,-305.27323533,0.00019339,2]
[426473562,1782431439000,-1518.0,0.0001955,5]
[426473560,1782431439000,-1294.6582448,0.00019471,2]
[426473566,1782431439000,-151.0,0.00019762,2]
[426473568,1782431439000,-151.0,0.00019762,2]
[426473569,1782431439000,-151.0,0.00019762,2]
[426473564,1782431439000,-1474.0,0.0001955,5]
[426473565,1782431439000,-3958.96287272,0.0001971,2]
[426473567,1782431439000,-151.0,0.00019762,2]
[426473572,1782431439000,-151.0,0.00019762,2]
[426473549,1782431439000,-151.0,0.00019178,2]
[426473606,1782431440000,-414.63932401,0.0001981,2]
[426473607,1782431440000,-702.50280699,0.0001981,2]
[426473608,1782431440000,-745.76877668,0.0001981,2]
[426473610,1782431440000,-674.12308737,0.0001981,2]
[426473609,1782431440000,-38034.59387786,0.0001981,2]
[426473605,1782431440000,-406.5945204,0.0001981,2]
[426473615,1782431443000,-5653.48335827,0.0001981,2]
[426473613,1782431443000,-263.3368994,0.0001981,2]
[426473614,1782431443000,-2969.96688146,0.0001981,2]
[426473612,1782431443000,-497.7120697,0.0001981,2]
[426473616,1782431444000,-5021.7209751,0.0001981,2]
[426473617,1782431444000,-1046.88928713,0.0001981,2]
[426473618,1782431444000,-661.03999474,0.0001981,2]
[426473623,1782431447000,-203.02424492,0.00017628,2]
[426473622,1782431447000,-424.06328707,0.00016,2]
[426473624,1782431447000,-347317.83374411,0.0001981,2]
[426473636,1782431681000,949.13620017,8e-05,2]
[426473637,1782431681000,50.86379983,8e-05,2]
[426473654,1782431985000,201.8314075,0.00037253,120]
[426473656,1782432151000,1960.00767628,9.859e-05,2]
[426473657,1782432151000,906.41273606,9.859e-05,2]
[426473658,1782432151000,519.89960597,9.859e-05,2]
[426473659,1782432197000,501.24964893,9.859e-05,2]
[426473662,1782432286000,963.9277197,9.859e-05,2]
[426473663,1782432287000,926.10871418,9.656e-05,2]
[426473666,1782432402000,223.17450603,0.00010689,7]
[426473670,1782432533000,171.34,9.065e-05,2]
[426473675,1782432537000,-250.0,0.00010367,2]
[426473674,1782432537000,-150.0,0.00010354,2]
[426473673,1782432537000,-160.0,0.00010302,2]
[426473671,1782432537000,-1505.144978,0.00010239,2]
[426473672,1782432537000,-503.756336,0.00010291,2]
[426473678,1782432538000,-739.3610686,0.0001044,2]
[426473679,1782432538000,-1327.46804596,0.0001044,2]
[426473677,1782432538000,-195.11,0.00010432,2]
[426473676,1782432538000,-657.160739,0.00010393,2]
[426473680,1782432561000,-4270.29314495,0.0001044,2]
[426473682,1782432561000,-217.54705075,0.00010453,2]
[426473683,1782432561000,-900.65752944,0.00010456,2]
[426473681,1782432561000,-574.51774049,0.0001044,2]
[426473688,1782432562000,-938.54463965,0.00010586,2]
[426473687,1782432562000,-217.54705075,0.00010559,2]
[426473686,1782432562000,-980.3,0.00010498,2]
[426473685,1782432562000,-150.0,0.00010496,2]
[426473684,1782432562000,-2758.70247056,0.00010456,2]
[426473689,1782432583000,226.4074167,0.00010689,7]
[426473692,1782432586000,-500.0,0.00010605,2]
[426473691,1782432586000,-150.0,0.000106,2]
[426473690,1782432586000,-211.42536035,0.00010586,2]
[426473693,1782432586000,-500.0,0.00010605,2]
[426473695,1782432586000,-150.0,0.00010659,2]
[426473697,1782432586000,-1000.0,0.00010659,2]
[426473696,1782432586000,-1000.0,0.00010659,2]
[426473699,1782432586000,-452.72277335,0.00010659,2]
[426473701,1782432586000,-202.05148203,0.00010659,2]
[426473694,1782432586000,-330.85086727,0.00010605,2]
[426473698,1782432586000,-547.27722665,0.00010659,2]
[426473700,1782432586000,-1000.0,0.00010659,2]
[426473704,1782432610000,-317.96812664,0.00010659,2]
[426473702,1782432610000,-797.94851797,0.00010659,2]
[426473703,1782432610000,-1000.0,0.00010659,2]
[426473705,1782432633000,-682.03187336,0.00010659,2]
[426473706,1782432633000,-1000.0,0.00010659,2]
[426473707,1782432633000,-317.96812664,0.00010659,2]
[426473717,1782432633000,-175.5,0.00010885,2]
[426473708,1782432633000,-682.03187336,0.00010659,2]
[426473709,1782432633000,-1000.0,0.00010659,2]
[426473711,1782432633000,-1000.0,0.00010659,2]
[426473712,1782432633000,-1000.0,0.00010659,2]
[426473713,1782432633000,-1000.0,0.00010659,2]
[426473714,1782432633000,-334.7,0.00010667,2]
[426473715,1782432633000,-216.0,0.00010704,2]
[426473716,1782432633000,-1149.97,0.0001085,2]
[426473808,1782432637000,-127.04550868,0.00011896,2]
[426473801,1782432637000,-500.0,0.00011896,2]
[426473800,1782432637000,-500.0,0.00011896,2]
[426473802,1782432637000,-500.0,0.00011896,2]
[426473803,1782432637000,-220.56386631,0.00011896,2]
[426473804,1782432637000,-500.0,0.00011896,2]
[426473809,1782432637000,-372.95449132,0.00011896,2]
[426473805,1782432637000,-500.0,0.00011896,2]
[426473807,1782432637000,-372.95449132,0.00011896,2]
[426473806,1782432637000,-500.0,0.00011896,2]
[426473811,1782432637000,-500.0,0.00011896,2]
[426473812,1782432637000,-500.0,0.00011896,2]
[426473813,1782432637000,-500.0,0.00011896,2]
[426473814,1782432637000,-154.06464021,0.00011896,2]
[426473815,1782432637000,-2297.68713462,0.00011897,2]
[426473817,1782432637000,-4770.89674706,0.00011897,2]
[426473816,1782432637000,-814.72438208,0.00011897,2]
[426473818,1782432637000,-857.03103393,0.00011897,2]
[426473810,1782432637000,-127.04550868,0.00011896,2]
[426474253,1782432646000,-438.10715932,0.00010559,2]
[426474254,1782432646000,-13279.33905429,0.00011897,2]
[426474258,1782433152000,-6.22551504,0.00010592,2]
[426474257,1782433152000,-192.80448496,0.00010579,2]
[426474256,1782433152000,-297.34551504,0.00010579,2]
[426474261,1782433622000,3646.855999,9.995e-05,2]
[426474262,1782433656000,300.67825764,9.941e-05,2]
[426474263,1782433763000,-223.39198,0.00010036,2]
[426474264,1782433765000,150.0,9.735e-05,2]
[426474265,1782433781000,-1650.69802,0.00010036,2]
[426474267,1782433781000,-150.0,0.00010038,2]
[426474266,1782433781000,-823.75,0.00010038,2]
[426474268,1782433781000,-250.0,0.00010041,2]
[426474269,1782433781000,-553.4,0.00010045,2]
[426474271,1782433781000,-168.5848378,0.0001005,2]
[426474270,1782433781000,-180.63,0.0001005,2]
[426474273,1782433781000,-111.21471209,0.00010095,2]
[426474272,1782433781000,-270.16916169,0.00010095,2]
[426474274,1782433781000,-150.0,0.00010135,2]
[426474275,1782433781000,-256.95,0.00010197,2]
[426474279,1782433781000,-493.77448496,0.00010348,2]
[426474277,1782433781000,-500.0,0.00010247,2]
[426474276,1782433781000,-150.0,0.00010236,2]
[426474286,1782433781000,-167.15,0.00010581,2]
[426474287,1782433781000,-200.0,0.00010605,2]
[426474285,1782433781000,-150.0,0.00010537,2]
[426474283,1782433781000,-1404.60282244,0.000105,2]
[426474288,1782433781000,-7.21798397,0.00010637,2]
[426474282,1782433781000,-160.0,0.00010491,2]
[426474280,1782433781000,-150.0,0.00010436,2]
[426474281,1782433781000,-520.69,0.00010484,2]
[426474278,1782433781000,-150.0,0.00010336,2]
[426474284,1782433781000,-1032.51717756,0.000105,2]
[426474290,1782433807000,-2714.63224196,0.00010041,2]
[426474291,1782433807000,-250.0,0.00010339,2]
[426474294,1782433807000,-296.0,0.00010737,2]
[426474293,1782433807000,-300.67825764,0.00010686,2]
[426474295,1782433807000,-520.69,0.00010746,2]
[426474292,1782433807000,-142.78201603,0.00010637,2]
[426474297,1782433807000,-134.52351213,0.00010959,2]
[426474296,1782433807000,-15.47648787,0.00010959,2]
[426474298,1782433807000,-150.0,0.00010959,2]
[426474300,1782433808000,-250.0,0.0001104,2]
[426474299,1782433808000,-520.69,0.00011008,2]
[426474301,1782433808000,-250.0,0.00011045,2]
[426474303,1782433808000,-168.604255,0.00011179,2]
[426474302,1782433808000,-167.15,0.00011163,2]
[426474305,1782433808000,-808.4064485,0.00011216,2]
[426474306,1782433808000,-500.0,0.00011216,2]
[426474307,1782433808000,-1097.51298483,0.00011227,2]
[426474308,1782433808000,-281.50832764,0.00011227,2]
[426474304,1782433808000,-193.37180304,0.00011216,2]
[426474333,1782433831000,-1000.0,0.00011521,2]
[426474334,1782433831000,-12414.4662154,0.00011522,2]
[426474315,1782433831000,-150.0,0.0001089,2]
[426474343,1782433831000,-500.0,0.00011531,2]
[426474341,1782433831000,-232.23304596,0.00011531,2]
[426474329,1782433831000,-154.82852285,0.00011433,2]
[426474327,1782433831000,-150.0,0.00011432,2]
[426474326,1782433831000,-300.67825764,0.00011431,2]
[426474325,1782433831000,-553.4,0.00011301,2]
[426474324,1782433831000,-520.69,0.0001127,2]
[426474328,1782433831000,-285.11293824,0.00011433,2]
[426474331,1782433831000,-12310.07661895,0.00011433,2]
[426474321,1782433831000,-151.0,0.00011227,2]
[426474320,1782433831000,-152.0,0.00011227,2]
[426474322,1782433831000,-152.57,0.00011233,2]
[426474316,1782433831000,-242.88104098,0.00011227,2]
[426474318,1782433831000,-152.0,0.00011227,2]
[426474317,1782433831000,-22044.41764655,0.00011227,2]
[426474319,1782433831000,-152.0,0.00011227,2]
[426474332,1782433831000,-151.91400748,0.00011448,2]
[426474330,1782433831000,-2375.37772365,0.00011433,2]
[426474336,1782433831000,-152.0,0.00011522,2]
[426474323,1782433831000,-274.06,0.00011253,2]
[426474338,1782433831000,-280.44765688,0.00011531,2]
[426474339,1782433831000,-500.0,0.00011531,2]
[426474362,1782433831000,-500.0,0.00011531,2]
[426474355,1782433831000,-500.0,0.00011531,2]
[426474358,1782433831000,-500.0,0.00011531,2]
[426474361,1782433831000,-500.0,0.00011531,2]
[426474359,1782433831000,-500.0,0.00011531,2]
[426474360,1782433831000,-500.0,0.00011531,2]
[426474357,1782433831000,-500.0,0.00011531,2]
[426474356,1782433831000,-500.0,0.00011531,2]
[426474346,1782433831000,-500.0,0.00011531,2]
[426474352,1782433831000,-500.0,0.00011531,2]
[426474337,1782433831000,-157.86015524,0.00011522,2]
[426474350,1782433831000,-500.0,0.00011531,2]
[426474347,1782433831000,-175.96876677,0.00011531,2]
[426474335,1782433831000,-152.0,0.00011522,2]
[426474345,1782433831000,-500.0,0.00011531,2]
[426474348,1782433831000,-544.01597651,0.00011531,2]
[426474340,1782433831000,-500.0,0.00011531,2]
[426474351,1782433831000,-500.0,0.00011531,2]
[426474349,1782433831000,-500.0,0.00011531,2]
[426474344,1782433831000,-257.77370035,0.00011531,2]
[426474353,1782433831000,-500.0,0.00011531,2]
[426474354,1782433831000,-500.0,0.00011531,2]
[426474342,1782433831000,-183.94203412,0.00011531,2]
[426474369,1782433832000,-500.0,0.00011531,2]
[426474363,1782433832000,-500.0,0.00011531,2]
[426474365,1782433832000,-500.0,0.00011531,2]
[426474364,1782433832000,-500.0,0.00011531,2]
[426474367,1782433832000,-500.0,0.00011531,2]
[426474370,1782433832000,-386.23319869,0.00011531,2]
[426474366,1782433832000,-500.0,0.00011531,2]
[426474372,1782433832000,-500.0,0.00011531,2]
[426474373,1782433832000,-10096.5514552,0.00011532,2]
[426474368,1782433832000,-500.0,0.00011531,2]
[426474375,1782433832000,-6600.76700649,0.00011532,2]
[426474371,1782433832000,-500.0,0.00011531,2]
[426474374,1782433832000,-188563.75393495,0.00011532,2]
[426474376,1782433832000,-6280.15443497,0.00011532,2]
[426474377,1782433832000,-5085.0,0.00011532,2]
[426474382,1782433833000,-72115.05924077,0.00011532,2]
[426474381,1782433833000,-305.87152824,0.00011532,2]
[426474383,1782433833000,-1108.62641723,0.00011532,2]
[426474380,1782433833000,-290.76682947,0.00011532,2]
[426474378,1782433833000,-326.848,0.00011532,2]
[426474379,1782433833000,-1710.80159987,0.00011532,2]
[426474392,1782433837000,-2231.02922488,0.00011532,2]
[426474393,1782433838000,-1449.26531249,0.00011532,2]
[426474439,1782433839000,-20639.67398875,0.00011532,2]
[426474438,1782433839000,-1687.49980296,0.00011532,2]
[426474448,1782433842000,-60618.16651863,0.00011532,2]
[426474450,1782433843000,-685.73941185,0.00011532,2]
[426474449,1782433843000,-10825.84630822,0.00011532,2]
[426474457,1782433846000,-28690.13578098,0.00011532,2]
[426474456,1782433846000,-444.03800456,0.00011532,2]
[426474458,1782433846000,-431.07023608,0.00011532,2]
[426474455,1782433846000,-408431.71546435,0.00011532,2]
[426474465,1782434021000,223.17450603,0.00010401,7]
[426474466,1782434081000,500.0,0.00030136,120]
[426474467,1782434131000,10732.46453512,0.00037255,120]
[426474468,1782434143000,2000.0,0.00037255,120]
[426474469,1782434175000,17022.16645456,0.00037255,120]
[426474470,1782434194000,5000.0,0.00037255,120]
[426474471,1782434207000,5000.0,0.00037255,120]
[426474477,1782434448000,-150.0,0.00010539,2]
[426474476,1782434448000,-183.61,0.00010465,2]
[426474474,1782434448000,-500.0,0.00010216,2]
[426474475,1782434448000,-2412.07654987,0.000104,2]
[426474478,1782434448000,-629.07,0.00010565,2]
[426474479,1782434449000,-1125.24345013,0.00010619,2]
[426474480,1782434450000,-159.89654987,0.00010619,2]
[426474481,1782434450000,-1286.16822265,0.00010632,2]
[426474483,1782434450000,-3403.93522748,0.00010678,2]
[426474484,1782434450000,-4051.93167452,0.00010678,2]
[426474485,1782434450000,-250.0,0.00010682,2]
[426474486,1782434450000,-698.06832548,0.00010732,2]
[426474482,1782434450000,-150.0,0.0001067,2]
[426474496,1782434451000,-160.0,0.00010739,2]
[426474499,1782434451000,-1027.60083722,0.00010885,2]
[426474498,1782434451000,-150.0,0.00010881,2]
[426474495,1782434451000,-154.52,0.00010737,2]
[426474497,1782434451000,-150.0,0.00010776,2]
[426474494,1782434451000,-151.0,0.00010732,2]
[426474487,1782434451000,-938.58328236,0.00010732,2]
[426474492,1782434451000,-151.0,0.00010732,2]
[426474490,1782434451000,-151.0,0.00010732,2]
[426474491,1782434451000,-152.0,0.00010732,2]
[426474488,1782434451000,-1512.29588042,0.00010732,2]
[426474489,1782434451000,-151.0,0.00010732,2]
[426474500,1782434451000,-257.53916278,0.00010885,2]
[426474493,1782434451000,-151.0,0.00010732,2]
[426474502,1782434451000,-166.66,0.00010959,2]
[426474517,1782434451000,-151.0,0.00011532,2]
[426474503,1782434451000,-150.0,0.00010987,2]
[426474501,1782434451000,-150.0,0.00010959,2]
[426474515,1782434451000,-98.99083722,0.00011507,2]
[426474514,1782434451000,-1285.14,0.00011416,2]
[426474509,1782434451000,-166.66,0.00011178,2]
[426474513,1782434451000,-166.66,0.00011397,2]
[426474512,1782434451000,-150.0,0.00011288,2]
[426474516,1782434451000,-67.66916278,0.00011507,2]
[426474510,1782434451000,-198.0,0.00011198,2]
[426474508,1782434451000,-1285.14,0.0001115,2]
[426474507,1782434451000,-150.0,0.00011093,2]
[426474506,1782434451000,-166.66,0.00011068,2]
[426474504,1782434451000,-263.49,0.00011,2]
[426474505,1782434451000,-178.4,0.0001102,2]
[426474511,1782434451000,-166.66,0.00011288,2]
[426474518,1782434452000,-151.0,0.00011532,2]
[426474520,1782434452000,-160.0,0.0001154,2]
[426474522,1782434452000,-1285.14,0.00011681,2]
[426474521,1782434452000,-303.48841568,0.00011548,2]
[426474523,1782434452000,-250.0,0.00011695,2]
[426474524,1782434452000,-2478.70242154,0.000117,2]
[426474525,1782434452000,-5000.0,0.000117,2]
[426474526,1782434452000,-5000.0,0.000117,2]
[426474519,1782434452000,-153.0,0.00011532,2]
[426474527,1782434453000,-153.27143599,0.000117,2]
[426474529,1782434453000,-371.84078228,0.00011789,2]
[426474528,1782434453000,-167.15,0.00011745,2]
[426474530,1782434453000,-373.94428555,0.00011789,2]
[426474531,1782434453000,-309.97119118,0.00011789,2]
[426474532,1782434453000,-500.0,0.00011789,2]
[426474534,1782434453000,-500.0,0.00011789,2]
[426474533,1782434453000,-238.62331987,0.00011789,2]
[426474535,1782434453000,-500.0,0.00011789,2]
[426474538,1782434453000,-500.0,0.00011789,2]
[426474537,1782434453000,-500.0,0.00011789,2]
[426474539,1782434453000,-385.19898513,0.00011789,2]
[426474540,1782434453000,-151.0,0.00011701,2]
[426474541,1782434453000,-114.80101487,0.00011789,2]
[426474542,1782434453000,-4734.19898513,0.0001179,2]
[426474543,1782434453000,-5000.0,0.0001179,2]
[426474536,1782434453000,-500.0,0.00011789,2]
[426474546,1782434454000,-5000.0,0.0001179,2]
[426474545,1782434454000,-5000.0,0.0001179,2]
[426474544,1782434454000,-5000.0,0.0001179,2]
[426474547,1782434455000,-5000.0,0.0001179,2]
[426474549,1782434455000,-5000.0,0.0001179,2]
[426474548,1782434455000,-5000.0,0.0001179,2]
[426474553,1782434456000,-5000.0,0.0001179,2]
[426474552,1782434456000,-4849.0,0.0001179,2]
[426474551,1782434456000,-151.0,0.00011701,2]
[426474550,1782434456000,-5000.0,0.0001179,2]
[426474555,1782434457000,-5000.0,0.0001179,2]
[426474554,1782434457000,-5000.0,0.0001179,2]
[426474558,1782434458000,-5000.0,0.0001179,2]
[426474557,1782434458000,-5000.0,0.0001179,2]
[426474556,1782434458000,-5000.0,0.0001179,2]
[426474560,1782434459000,-5000.0,0.0001179,2]
[426474559,1782434459000,-5000.0,0.0001179,2]
[426474561,1782434460000,-5000.0,0.0001179,2]
[426474564,1782434460000,-5000.0,0.0001179,2]
[426474563,1782434460000,-4849.0,0.0001179,2]
[426474562,1782434460000,-151.0,0.00011701,2]
[426474565,1782434461000,-5000.0,0.0001179,2]
[426474567,1782434461000,-5000.0,0.0001179,2]
[426474566,1782434461000,-5000.0,0.0001179,2]
[426474568,1782434462000,-5000.0,0.0001179,2]
[426474570,1782434462000,-5000.0,0.0001179,2]
[426474569,1782434462000,-5000.0,0.0001179,2]
[426474574,1782434463000,-5000.0,0.0001179,2]
[426474573,1782434463000,-4849.0,0.0001179,2]
[426474572,1782434463000,-151.0,0.00011701,2]
[426474571,1782434463000,-5000.0,0.0001179,2]
[426474575,1782434464000,-5000.0,0.0001179,2]
[426474576,1782434474000,-5000.0,0.0001179,2]
[426474577,1782434476000,-5000.0,0.0001179,2]
[426474578,1782434502000,-150.0,0.00011206,2]
[426474579,1782434502000,-150.0,0.00011437,2]
[426474582,1782434502000,-500.0,0.00011789,2]
[426474583,1782434502000,-3744.153,0.0001179,2]
[426474580,1782434502000,-150.0,0.00011613,2]
[426474581,1782434502000,-305.847,0.0001169,2]
[426474584,1782434503000,-151.0,0.00011613,2]
[426474585,1782434503000,-4849.0,0.0001179,2]
[426474586,1782434504000,-5000.0,0.0001179,2]
[426474588,1782434504000,-5000.0,0.0001179,2]
[426474587,1782434504000,-5000.0,0.0001179,2]
[426474589,1782434505000,-5000.0,0.0001179,2]
[426474591,1782434505000,-5000.0,0.0001179,2]
[426474590,1782434505000,-5000.0,0.0001179,2]
[426474593,1782434506000,-5000.0,0.0001179,2]
[426474594,1782434506000,-5000.0,0.0001179,2]
[426474592,1782434506000,-5000.0,0.0001179,2]
[426474596,1782434507000,-5000.0,0.0001179,2]
[426474595,1782434507000,-5000.0,0.0001179,2]
[426474598,1782434508000,-5000.0,0.00011789,2]
[426474597,1782434508000,-5000.0,0.0001179,2]
[426474600,1782434509000,-5000.0,0.00011789,2]
[426474599,1782434509000,-5000.0,0.00011789,2]
[426474601,1782434510000,-5000.0,0.00011789,2]
[426474602,1782434510000,-5000.0,0.00011789,2]
[426474604,1782434510000,-5000.0,0.00011789,2]
[426474605,1782434510000,-5000.0,0.00011789,2]
[426474603,1782434510000,-5000.0,0.00011789,2]
[426474608,1782434511000,-5000.0,0.00011789,2]
[426474607,1782434511000,-5000.0,0.00011789,2]
[426474606,1782434511000,-5000.0,0.00011789,2]
[426474610,1782434512000,-5000.0,0.00011789,2]
[426474609,1782434512000,-5000.0,0.00011789,2]
[426474613,1782434513000,-5000.0,0.00011789,2]
[426474612,1782434513000,-5000.0,0.00011789,2]
[426474611,1782434513000,-5000.0,0.00011789,2]
[426474616,1782434514000,-5000.0,0.00011789,2]
[426474615,1782434514000,-5000.0,0.00011789,2]
[426474614,1782434514000,-5000.0,0.00011789,2]
[426474617,1782434515000,-5000.0,0.00011789,2]
[426474618,1782434515000,-5000.0,0.00011789,2]
[426474619,1782434515000,-5000.0,0.00011789,2]
[426474621,1782434516000,-5000.0,0.00011789,2]
[426474620,1782434516000,-5000.0,0.00011789,2]
[426474624,1782434517000,-5000.0,0.00011789,2]
[426474623,1782434517000,-5000.0,0.00011789,2]
[426474622,1782434517000,-5000.0,0.00011789,2]
[426474627,1782434518000,-5000.0,0.00011789,2]
[426474626,1782434518000,-5000.0,0.00011789,2]
[426474625,1782434518000,-5000.0,0.00011789,2]
[426474628,1782434519000,-5000.0,0.00011789,2]
[426474631,1782434520000,-5000.0,0.00011789,2]
[426474630,1782434520000,-5000.0,0.00011789,2]
[426474629,1782434520000,-5000.0,0.00011789,2]
[426474632,1782434521000,-5000.0,0.00011789,2]
[426474633,1782434521000,-5000.0,0.00011789,2]
[426474634,1782434521000,-5000.0,0.00011789,2]
[426474636,1782434522000,-5000.0,0.00011789,2]
[426474635,1782434522000,-5000.0,0.00011789,2]
[426474637,1782434523000,-5000.0,0.00011789,2]
[426474638,1782434524000,-188.511898,0.00011779,2]
[426474639,1782434524000,-4811.488102,0.00011789,2]
[426474643,1782434528000,-5000.0,0.00011789,2]
[426474642,1782434528000,-5000.0,0.00011789,2]
[426474641,1782434528000,-5000.0,0.00011789,2]
[426474640,1782434528000,-5000.0,0.00011789,2]
[426474644,1782434529000,-5000.0,0.00011789,2]
[426474647,1782434530000,-5000.0,0.00011789,2]
[426474646,1782434530000,-5000.0,0.00011789,2]
[426474645,1782434530000,-5000.0,0.00011789,2]
[426474649,1782434531000,-5000.0,0.00011789,2]
[426474648,1782434531000,-5000.0,0.00011789,2]
[426474650,1782434532000,-5000.0,0.00011789,2]
[426474651,1782434532000,-5000.0,0.00011789,2]
[426474652,1782434532000,-5000.0,0.00011789,2]
[426474653,1782434533000,-5000.0,0.00011789,2]
[426474654,1782434534000,-5000.0,0.00011789,2]
[426474655,1782434535000,-5000.0,0.00011789,2]
[426474656,1782434536000,-5000.0,0.00011789,2]
[426474657,1782434537000,-5000.0,0.00011789,2]
[426474658,1782434538000,-5000.0,0.00011789,2]
[426474659,1782434569000,-150.0,0.00011788,2]
[426474662,1782434569000,-500.0,0.00011788,2]
[426474660,1782434569000,-458.36506206,0.00011788,2]
[426474661,1782434569000,-174.43217526,0.00011788,2]
[426474663,1782434569000,-442.99097614,0.00011788,2]
[426474665,1782434569000,-500.0,0.00011788,2]
[426474664,1782434569000,-367.10738007,0.00011788,2]
[426474669,1782434569000,-93.03626773,0.00011788,2]
[426474666,1782434569000,-164.06813874,0.00011788,2]
[426474667,1782434569000,-500.0,0.00011788,2]
[426474668,1782434569000,-500.0,0.00011788,2]
[426474671,1782434637000,-150.0,0.00011372,2]
[426474672,1782434637000,-139.0,0.00011438,2]
[426474670,1782434637000,-150.0,0.0001135,2]
[426474673,1782434862000,150.0,9.886e-05,2]
[426474674,1782434923000,-150.0,0.00010192,2]
[426474675,1782434923000,-173.08657126,0.00010192,2]
[426474676,1782434923000,-414.093,0.00010407,2]
[426474678,1782434923000,-154.0,0.0001051,2]
[426474677,1782434923000,-150.0,0.00010507,2]
[426474679,1782434923000,-154.0,0.00010614,2]
[426474680,1782434923000,-1597.4,0.00010621,2]
[426474681,1782434923000,-154.0,0.00010718,2]
[426474683,1782434923000,-151.0,0.0001083,2]
[426474684,1782434923000,-150.0,0.0001083,2]
[426474687,1782434923000,-92.29274943,0.00010832,2]
[426474686,1782434923000,-341.91,0.0001083,2]
[426474688,1782434923000,-2661.80725057,0.00010832,2]
[426474682,1782434923000,-154.0,0.00010822,2]
[426474685,1782434923000,-150.0,0.0001083,2]
[426474690,1782434924000,-150.0,0.00010959,2]
[426474689,1782434924000,-154.0,0.00010926,2]
[426474693,1782434924000,-150.0,0.00011095,2]
[426474692,1782434924000,-500.0,0.00011041,2]
[426474694,1782434924000,-0.70312828,0.00011134,2]
[426474691,1782434924000,-154.0,0.0001103,2]
[426474695,1782434948000,-153.29687172,0.00011134,2]
[426474697,1782434948000,-150.0,0.00011173,2]
[426474698,1782434948000,-250.0,0.00011211,2]
[426474696,1782434948000,-151.0,0.00011144,2]
[426474699,1782434948000,-154.0,0.00011238,2]
[426474700,1782434948000,-500.0,0.00011288,2]
[426474702,1782434948000,-500.0,0.0001137,2]
[426474701,1782434948000,-154.0,0.00011343,2]
[426474704,1782434948000,-156.0,0.00011447,2]
[426474703,1782434948000,-13.0,0.00011438,2]
[426474705,1782434948000,-151.0,0.00011469,2]
[426474714,1782434948000,-500.0,0.0001162,2]
[426474706,1782434948000,-300.0,0.00011471,2]
[426474707,1782434948000,-250.0,0.00011504,2]
[426474710,1782434948000,-279.81166212,0.00011577,2]
[426474709,1782434948000,-151.0,0.00011561,2]
[426474711,1782434948000,-188.83514179,0.00011589,2]
[426474712,1782434948000,-138.96449905,0.00011589,2]
[426474713,1782434948000,-11.03550095,0.00011589,2]
[426474708,1782434948000,-500.0,0.00011504,2]
[426474715,1782434948000,-500.0,0.0001162,2]
[426474717,1782434948000,-921.46912188,0.00011689,2]
[426474716,1782434948000,-500.0,0.0001162,2]
[426474719,1782434973000,-3157.97899788,0.00010898,2]
[426474718,1782434973000,-4272.37643063,0.00010898,2]